Cogmind - Beta 17 @@@ ROGUE MODE // 2026.06.23 @ 23:33:05 Player: beans Result: Destroyed by S-27 Virus with Autogun Performance ------------- Evolutions (5) 2500 Regions Visited (4) 800 Robots Destroyed (21) 105 Value Destroyed (720) 720 Prototype IDs (16) 320 Alien Tech Used (0) 0 Bonus (0) 0 TOTAL SCORE: 4445 Bonus ------- None Cogmind --------- Core Integrity 0/1000 Matter 300/300 Energy 99/100 System Corruption 4% Temperature Cool (0) Movement Core (50) Location -5/Factory Parts ------- > --- POWER (1) -------- (None) > --- PROPULSION (5) --- (None) > --- UTILITY (8) ------ Hacking Suite > --- WEAPON (3) ------- (None) > --- INVENTORY (5) ---- Light Ion Engine Self-contained Transmogrifier Peak State ------------ > --- POWER ------------ Micro Fission Core > --- PROPULSION ------- Flexi-carbon Leg Thunder Leg Thunder Leg Thunder Leg > --- UTILITY ---------- Hacking Suite Hacking Suite > --- WEAPON ----------- Heavy Laser Heavy Laser Gauss Rifle > --- INVENTORY -------- Light Ion Engine Self-contained Transmogrifier [Rating: 48] Favorites ----------- Power Subdweller Power Source Engine Subdweller Power Source Power Core Micro Fission Core Propulsion Aluminum Leg Leg Aluminum Leg Flight Unit Flight Unit Utility Hacking Suite Device Cooling System Hackware Hacking Suite Weapon Plasma Cutter Energy Gun Cooled Plasma Rifle Energy Cannon Powered Cannon Ballistic Gun Gauss Rifle Launcher Grenade Launcher Special Weapon Plasma Cutter Slashing Weapon Chainsword Build | -11 -10 -10 -7 -5 ------- Run | Yrd Mat Sub Rec Fac Slots Evolved 10 | . . . . 10 Power . | . . . . . Propulsion 3 | . . . . 3 Utility 6 | . . . . 6 Weapon 1 | . . . . 1 Parts Attached 35 | 3 3 4 3 22 Power 6 | 1 . 1 . 4 Engine 3 | 1 . 1 . 1 Core 3 | . . . . 3 Reactor . | . . . . . Propulsion 9 | 2 . 1 . 6 Treads . | . . . . . Leg 8 | 2 . . . 6 Wheel . | . . . . . Hover . | . . . . . Flight 1 | . . 1 . . Utility 8 | . 1 . 2 5 Device 3 | . 1 . . 2 Storage . | . . . . . Processor . | . . . . . Hackware 5 | . . . 2 3 Protection . | . . . . . Artifact . | . . . . . Weapon 12 | . 2 2 1 7 Energy Gun 4 | . . . . 4 Energy Cannon 1 | . . 1 . . Ballistic Gun 3 | . . . 1 2 Ballistic Cannon . | . . . . . Launcher 1 | . . 1 . . Special Weapon 2 | . 2 . . . Impact Weapon . | . . . . . Slashing Weapon 1 | . . . . 1 Piercing Weapon . | . . . . . Special Melee Weapon . | . . . . . Unidentified Prototypes 2 | . . . . 2 Parts Lost 31 | . . 7 . 24 Power 5 | . . 2 . 3 Propulsion 9 | . . 2 . 7 Utility 6 | . . 1 . 5 Weapon 11 | . . 2 . 9 Highest Loss Streak 10 | . . 5 . 10 To Critical Strikes . | . . . . . Average Backups 3 | . . 3 4 3 Power . | . . . . . Propulsion . | . . . . . Utility . | . . . 1 . Weapon 1 | . . 1 1 . Tool/Special . | . . . . . Unused Backups 4 | 2 . . . 2 Power . | . . . . . Propulsion . | . . . . . Utility . | . . . . . Weapon 3 | 2 . . . 1 Tool/Special 1 | . . . . 1 Average Slot Usage (%) 56 | . 64 68 49 33 Engine 7 | . 14 11 . . Leg 16 | . 28 24 . 6 Flight 2 | . . . 14 1 Device 7 | . 7 13 . . Hackware 7 | . . . 25 15 Energy Gun 1 | . . . . 4 Energy Cannon 2 | . . 5 . . Special Weapon 9 | . 14 12 9 . Peak Build Rating 48 | 3 9 21 13 48 Average Rating 14 | 1 6 13 9 24 On Entrance 5 | . 3 9 2 13 Avg Prop Armor Cover (%) . | . . . . . Naked Turns . | . . . . . Heaviest Build 17 | 5 9 16 4 17 Greatest Support 89 | 20 20 20 4 89 Greatest Overweight (x) 3 | . . 3 . 3 Average Overweight (x) . | . . . . . Largest Inventory Capacity 5 | 5 5 5 5 5 Average Capacity 5 | 5 5 5 5 5 Most Carried 5 | 4 3 5 5 5 Average Carried 3 | . . 3 4 3 Final Capacity 5 | 5 5 5 5 5 Final Carried 5 | . 1 4 5 2 Class Distribution -------------------- 61% | Mutant 37% | Hacker-Mutant Dominant Class ---------------- Mutant | -10/Materials Mutant | -10/Subcaves Hacker-Mutant | -7/Recycling Hacker-Mutant | -5/Factory Resources | -11 -10 -10 -7 -5 ----------- Run | Yrd Mat Sub Rec Fac Matter Collected 574 | 150 19 110 88 207 Remotely . | . . . . . Salvage Created 838 | . 19 91 . 728 Parts 48 | . 2 12 . 34 Haulers Intercepted 1 | . . . . 1 Recyclers Shooed . | . . . . . Parts Field Recycled . | . . . . . Retrieved Matter . | . . . . . Parts Self-Destructed 6 | . . 6 . . Prevented . | . . . . . Parts Restored . | . . . . . Kills | -11 -10 -10 -7 -5 ------- Run | Yrd Mat Sub Rec Fac Combat Hostiles Destroyed 18 | . . 5 . 13 Melee 3 | . . . . 3 Guns 9 | . . . . 9 Cannons 2 | . . 2 . . AOE 3 | . . 3 . . Classes Destroyed 8 | . 1 2 . 5 Builder 1 | . . . . 1 Tunneler 1 | . 1 . . . Hauler 1 | . . . . 1 Swarmer 9 | . . 4 . 5 Grunt 4 | . . . . 4 Hunter 3 | . . . . 3 Programmer 1 | . . . . 1 Subdweller 1 | . . 1 . . Best Kill Streak 4 | . 1 3 . 4 Combat Bots Only 4 | . . 3 . 4 Max Kills in Single Turn 2 | . 1 2 . 1 Gunslinging . | . . . . . Exploded 2 | . . 2 . . Melee 1 | . . . . 1 Uniques/NPCs Destroyed . | . . . . . Combat | -11 -10 -10 -7 -5 -------- Run | Yrd Mat Sub Rec Fac Hostile Shots Fired 322 | . . 101 . 221 Missed 92 | . . 34 . 58 Hits 230 | . . 67 . 163 Projectile 230 | . . 67 . 163 Critical Strikes 10 | . . 1 . 9 Part Disruptions 1 | . . . . 1 Damage Taken 3660 | . . 827 . 2833 Core 1239 | . . 226 . 1013 Absorbed by Shields . | . . . . . Core Remaining (%) 54 | 100 . . 9 . Volleys Fired 100 | . 6 31 . 63 Largest 2 | . 2 2 . 2 Hottest 138 | . 40 40 . 138 Shots Fired 128 | . 12 41 . 75 Gun 73 | . . . . 73 Cannon 17 | . . 17 . . Launcher 3 | . . 3 . . Special 35 | . 12 21 . 2 Kinetic 18 | . . . . 18 Thermal 107 | . 12 38 . 57 Explosive 3 | . . 3 . . Electromagnetic . | . . . . . Robot Hit Streak 10 | . 1 5 . 10 Robot Miss Streak 3 | . . 3 . 3 Penetration Max . | . . . . . Secondary Targets . | . . . . . Shots Hit Robots 78 | . 1 11 . 66 Core Hits 35 | . 1 7 . 27 Critical Kills . | . . . . . Critical Parts Destroyed . | . . . . . Critical Strikes 5 | . . . . 5 Sever 5 | . . . . 5 Melee Attacks 16 | . . . . 16 Impact . | . . . . . Slashing 16 | . . . . 16 Piercing . | . . . . . Sneak Attacks 1 | . . . . 1 Combat Hostiles . | . . . . . Follow-up Attacks . | . . . . . Damage Inflicted 2215 | . 21 358 . 1836 Guns 1250 | . . . . 1250 Cannons 92 | . . 92 . . Explosions 174 | . . 174 . . Melee 568 | . . . . 568 Ramming 8 | . . . . 8 Kinetic 255 | . . . . 255 Thermal 1210 | . 21 184 . 1005 Explosive 174 | . . 174 . . Electromagnetic . | . . . . . Impact . | . . . . . Slashing 568 | . . . . 568 Piercing . | . . . . . Highest Corruption 4 | . . . . 4 Average Corruption 2 | . . . . 2 Corruption Purged . | . . . . . Corruption Blocked . | . . . . . Effects 5 | . . . . 5 Message Errors 3 | . . . . 3 Matter Fused 2 | . . . . 2 Overload Shots . | . . . . . Overflow Damage 32 | . . 2 . 30 Projectiles . | . . . . . Explosions 2 | . . 2 . . Melee 30 | . . . . 30 Knockbacks 1 | . . . . 1 Impact 1 | . . . . 1 Kinetic . | . . . . . Secondary . | . . . . . Self-Inflicted Damage 48 | . . 46 . 2 Shots 3 | . . 3 . . Rammed 6 | . . 4 . 2 Targets Rammed 11 | . . 4 . 7 Kicked 5 | . . . . 5 Crushed . | . . . . . Highest Temperature 126 | . . . . 126 Average Temperature 39 | . . . . 39 Received Heat Transfer 426 | . . 66 . 360 Siege Activations . | . . . . . Martial Activations . | . . . . . Shielding Activations . | . . . . . Robots Disrupted . | . . . . . Combat Hostiles . | . . . . . Robots Corrupted . | . . . . . Combat Hostiles . | . . . . . Parts Fried . | . . . . . Impact Corruptions . | . . . . . Robots Melted 1 | . . . . 1 Combat Hostiles 1 | . . . . 1 Parts Melted 4 | . 1 . . 3 Heat Transferred 2412 | . 74 296 . 2042 Parts Sabotaged . | . . . . . Parts Stolen . | . . . . . Parts Stripped . | . . . . . Power Chain Reactions . | . . . . . Alert | -11 -10 -10 -7 -5 ------- Run | Yrd Mat Sub Rec Fac Maximum Alert Level 1 | . . . . 1 Low Security (%) 55 | 100 100 . 100 9 Level 1 44 | . . . . 90 Level 2 . | . . . . . Level 3 . | . . . . . Level 4 . | . . . . . Level 5 . | . . . . . High Security . | . . . . . Max Security . | . . . . . Peak Influence 284 | . 5 . 24 284 Initial 250 | . . . 24 250 Average 118 | . . . 3 236 Influence Increases 749 | . 5 140 10 594 Destroy 0b10 Robot/C 340 | . . 80 . 260 Destroy 0b10 Robot/NC 15 | . 5 . . 10 Destroy Leader 42 | . . . . 42 Successful Hack 10 | . . . 10 . Disable Machine 15 | . . . . 15 Destroy Structure 2 | . . . . 2 Advance Influence 250 | . . . . 250 Lose Combat Pursuer 75 | . . 60 . 15 Influence Decreases 625 | . 5 88 62 470 Entered New Map 28 | . . . 28 . Time Decay 299 | . 5 30 34 230 Lost Part 298 | . . 58 . 240 Squads Dispatched 4 | . . . . 4 Investigation . | . . . . . Extermination 1 | . . . . 1 Reinforcement 3 | . . . . 3 Assault . | . . . . . Garrison . | . . . . . Intercept . | . . . . . Searches Triggered . | . . . . . Construction Impeded . | . . . . . Haulers Reinforced 3 | . . . . 3 Active Scanning Responses . | . . . . . Cargo Convoy Interrupts . | . . . . . Stealth | -11 -10 -10 -7 -5 --------- Run | Yrd Mat Sub Rec Fac Distress Signals . | . . . . . Communications Jammed . | . . . . . Distress Signals . | . . . . . Times Spotted 33 | . . 8 . 25 Peak Tracking Total 9 | . . 6 . 9 Tactical Retreats 3 | . . 2 . 1 Traps | -11 -10 -10 -7 -5 ------- Run | Yrd Mat Sub Rec Fac Traps Triggered 4 | . . 3 . 1 Indirectly . | . . . . . Trap Hack Attempts . | . . . . . Triggered . | . . . . . Disarmed . | . . . . . Reprogrammed . | . . . . . Reused . | . . . . . Traps Extracted . | . . . . . Installed . | . . . . . Triggered . | . . . . . Machines | -11 -10 -10 -7 -5 ---------- Run | Yrd Mat Sub Rec Fac Machines Disabled 3 | . . 2 . 1 Max in Single Turn 1 | . . 1 . 1 Machines Repaired . | . . . . . Machines Dismantled 1 | . . 1 . . Machines Sabotaged . | . . . . . Overloaded Fab Kills . | . . . . . Hacking | -11 -10 -10 -7 -5 --------- Run | Yrd Mat Sub Rec Fac Machines Accessed 8 | . . 2 6 . Terminals 6 | . . . 6 . Fabricators . | . . . . . Repair Stations . | . . . . . Recycling Units . | . . . . . Scanalyzers . | . . . . . Garrison Access . | . . . . . Total Hacks 29 | . . 5 24 . Successful 13 | . . 5 8 . Failed 16 | . . . 16 . Catastrophic 3 | . . . 3 . Database Lockouts . | . . . . . Manual 1 | . . . 1 . Terminals 24 | . . . 24 . Fabricators . | . . . . . Repair Stations . | . . . . . Recycling Units . | . . . . . Scanalyzers . | . . . . . Garrison Access . | . . . . . Terminal Hacks 13 | . . 5 8 . Record 4 | . . 4 . . Part Schematic 2 | . . . 2 . Robot Analysis 1 | . . . 1 . Branch Access Points 1 | . . . 1 . Alert Level 3 | . . . 3 . Zone Layout 1 | . . . 1 . Proto ID Catalog 1 | . . 1 . . Fabricator Hacks . | . . . . . Repair Station Hacks . | . . . . . Recycling Unit Hacks . | . . . . . Scanalyzer . | . . . . . Garrison Access Hacks . | . . . . . Unauthorized Hacks . | . . . . . Terminals . | . . . . . Fabricators . | . . . . . Repair Stations . | . . . . . Recycling Units . | . . . . . Scanalyzers . | . . . . . Garrison Access . | . . . . . Data Cores Recovered . | . . . . . Used . | . . . . . Hacking Detections 6 | . . . 6 . Full Trace Events 5 | . . . 5 . Feedback Events . | . . . . . Feedback Blocked . | . . . . . Robot Schematics Acquired . | . . . . . Robots Built . | . . . . . Authchips . | . . . . . Time . | . . . . . Total Robot Build Rating . | . . . . . Part Schematics Acquired 2 | . . . 2 . Parts Built . | . . . . . Authchips . | . . . . . Time . | . . . . . Total Part Build Rating . | . . . . . Part Studies Acquired . | . . . . . Parts Repaired . | . . . . . Time . | . . . . . Parts Recycled . | . . . . . Recycled Matter . | . . . . . Retrieved Matter . | . . . . . Retrieved Components . | . . . . . Parts Scanalyzed . | . . . . . Part Schematics Acquired . | . . . . . Parts Damaged . | . . . . . Bothacking | -11 -10 -10 -7 -5 ------------ Run | Yrd Mat Sub Rec Fac Used RIF Installer . | . . . . . Robots Hacked . | . . . . . Non-combat . | . . . . . Combat . | . . . . . Robot Hacks Applied . | . . . . . Relay Couplers Released . | . . . . . Fabnet Peak Effective % . | . . . . . Robots Rewired . | . . . . . Allies Hacked . | . . . . . Hacks Repelled . | . . . . . Allies | -11 -10 -10 -7 -5 -------- Run | Yrd Mat Sub Rec Fac Total Allies . | . . . . . Largest Group . | . . . . . Highest-Rated Group . | . . . . . Highest-Rated Ally . | . . . . . Total Orders . | . . . . . Ally Attacks . | . . . . . Total Damage . | . . . . . Kills . | . . . . . Allies Corrupted . | . . . . . Allies Melted . | . . . . . Intel | -11 -10 -10 -7 -5 ------- Run | Yrd Mat Sub Rec Fac Active Infowar (turns) . | . . . . . Robot Analysis Total 1 | . . . 1 . Derelict Logs Recovered 1 | . . 1 . . Drone Launches . | . . . . . Drone Recoveries . | . . . . . Exploration | -11 -10 -10 -7 -5 ------------- Run | Yrd Mat Sub Rec Fac Turns Passed 1991 | 40 151 998 310 492 Spaces Moved 1809 | 36 96 665 695 317 Core 126 | 17 . 6 . 103 Treads . | . . . . . Legs 836 | 19 96 634 . 87 Wheels . | . . . . . Hover . | . . . . . Flight 847 | . . 25 695 127 Fastest Speed 40 | 50 120 40 40 40 Average Speed 80 | 86 120 116 40 78 Slowest Speed 200 | 120 120 200 40 200 Overloaded Moves . | . . . . . Propulsion Burnouts . | . . . . . Robots Hopped 2 | . . . 2 . Potential Cave-ins . | . . . . . Cave-ins Triggered . | . . . . . Exploration Rate (%) 34 | 4 15 48 94 9 Regions Visited 4 Branch Regions 2 Pre-discovered Areas . | . . . . . Known Exits Taken 1 | . . 1 . . Unknown Exits Taken 3 | 1 1 . 1 . Scrap Searched . | . . . . . Spaces Dug . | . . . . . Terrain Destroyed 23 | . . 22 . 1 Melee . | . . . . . Projectile 13 | . . 12 . 1 AOE 10 | . . 10 . . Terrain Rammed . | . . . . . Walls Destroyed . | . . . . . Machines Disabled . | . . . . . Actions | -11 -10 -10 -7 -5 --------- Run | Yrd Mat Sub Rec Fac Total 2146 | 45 108 813 722 458 Wait 118 | . . 93 16 9 Move 1801 | 35 95 664 690 317 Hop 2 | . . . 2 . Pick Up 32 | 5 4 6 4 13 Fast Attach 8 | . . . 2 6 Attach 35 | 3 3 6 4 19 Detach 11 | . . 4 2 5 Swap 1 | . . . . 1 Drop 6 | 2 . 1 1 2 Fire 100 | . 6 31 . 63 Melee 16 | . . . . 16 Ram 6 | . . 4 . 2 Kick 5 | . . . . 5 Crush . | . . . . . Escape Stasis . | . . . . . Rewire . | . . . . . Trap . | . . . . . Miscellaneous 5 | . . 4 1 . Route ------- -11/Scrapyard -10/Materials -10/Subcaves (discovered 3 exits: *Mat x2 / *Rec) -7/Recycling -5/Factory History --------- Turn | Location | Event 3 | -11/Scrapyard | Discovered new exit (range 15) 41 | -11/Scrapyard | Entered Materials 158 | -10/Materials | Discovered new exit (range 7) 192 | -10/Materials | Entered Subcaves 276 | -10/Subcaves | Learned 4 Materials zone layouts 305 | -10/Subcaves | Build established: Mutant 315 | -10/Subcaves | Discovered new exit (range 7) 652 | -10/Subcaves | Visited 4L-MR0's lab 679 | -10/Subcaves | Found Powered Cannon 684 | -10/Subcaves | Attached Powered Cannon, gained temporary slot: Power 692 | -10/Subcaves | Found Prototype Device 755 | -10/Subcaves | A swath of the cavern ceiling suddenly collapsed 856 | -10/Subcaves | Identified exit to Materials 856 | -10/Subcaves | Identified exit to Recycling 1119 | -10/Subcaves | Core integrity fell below 50% 1126 | -10/Subcaves | Core integrity fell below 20% 1156 | -10/Subcaves | Lost 5 parts (1p2n2w) 1190 | -10/Subcaves | Entered Recycling 1443 | -7/Recycling | Discovered new exit (range 14) 1500 | -7/Recycling | Entered Factory 1500 | -5/Factory | Evolved 10 slots: Propulsion x3, Utility x6, Weapon x1 1527 | -5/Factory | Build established: Hacker-Mutant 1678 | -5/Factory | Core integrity fell below 50% 1700 | -5/Factory | Lost 10 parts (1p3n3u3w) 1759 | -5/Factory | Lost 3 parts (1p2w) 1964 | -5/Factory | Core integrity fell below 20% 1992 | -5/Factory | Destroyed by S-27 Virus with Autogun Last Messages --------------- Penetrated by Slug. Slug penetrates P-70 Sage. Thunder Leg destroyed. Flexi-carbon Leg destroyed. Penetrated by Slug. Acquired 2 matter. Triggered Proton Bomb Trap. A bubble of electromagnetic force engulfs the area. Proton Bomb Trap short circuited. A bubble of electromagnetic force engulfs the area. Proton Bomb Trap short circuited. A bubble of electromagnetic force engulfs the area. Proton Bomb Trap short circuited. A bubble of electromagnetic force engulfs the area. Door malfunctions. Hacking Suite destroyed. Map ----- +----------------------------------------------------+ | ??????????# """ """ # #??????????????????????? | | ??????????# """ """ # #??????????????????????? | | ??????????# """ """ # #??????????????????????? | | ??????##### # #??????????????????????? | | #######T #######+#### #??????????????????????? | | #??????????????????????? | | +??????????????????????? | | #??????????????????????? | | % #??????????????????????? | | #??????????????????????? | | %###############+#### #??????????????????????? | | ####### ??# #??????????????????????? | | # #?"" # #??????????????????????? | | # #?"Y / #??????????????????????? | | # #?"" """ # #??????????????????????? | | %+=""" #????? """ ??# #??????????????????????? | | ^#%""" #????? ""????# #??????????????????????? | | # """ #????? ??????# #??????????????????????? | | # #????????????# #??????????????????????? | | +#######????????????# #??????????????????????? | | ??????????????????# #??????????????????????? | | "??????????????????# #??????????????????????? | | "" ?????????????????# #??????????????????????? | | "" ?????????????????# #??????????????????????? | | ?????????????????# #??????????????????????? | | ""??????????????????# @#??????????????????????? | | ????????????????????# #??????????????????????? | | ????????????????????# +??????????????????????? | | ????????????????????# # ?????????????????????? | | ????????????????????# t # ?????????????????????? | | ????????????????????# #? ????????????????????? | | ????????????????????# #? ????????????????????? | | ????????????????????# #?? ???????????????????? | | ????????????????????# #??????????????????????? | | ????????????????????+ #??????????????????????? | | ????????????????????# #??????????????????????? | | ????????????????????# #??????????????????????? | | ????????????????????# ???????????????????????? | | ????????????????????# ???????????????????????? | | ?????????????????????ss s ???????????????????????? | | ??????????????????????? ???????????????????????? | | ?????????????????????????????????????????????????? | | ?????????????????????????????????????????????????? | | ?????????????????????????????????????????????????? | | ?????????????????????????????????????????????????? | | ?????????????????????????????????????????????????? | | ?????????????????????????????????????????????????? | | ?????????????????????????????????????????????????? | | ?????????????????????????????????????????????????? | | ?????????????????????????????????????????????????? | +----------------------------------------------------+ Best States ------------- Heat Dissipation 54 Energy Generation 15 Energy Capacity 250 Matter Stores 300 Matter Capacity 300 Sight Range 16 Terrain Scan Density 10 Evasion (%) 70 Offensive Hacking 50 Item Schematics ----------------- Hvy. Phase Cannon | -7/Recycling | Hacked EM Shield | -7/Recycling | Hacked Robot Schematics ------------------ None Fabricated ------------ Nothing Repaired ---------- Nothing Studied --------- None Alien Tech Used ----------------- None Achievements -------------- None Challenges ------------ None Game ------ Seed BiomechanicalFrostLegs Manual? 0 Play Time 00:17:37 Cumulative 347.4 hours Start 2026.06.23 @ 23:16:46 End 2026.06.23 @ 23:33:05 Sessions 1 Manual Loads 0 Difficulty Rogue Special Mode None Game No. 865 Rogue 863 Adventurer 2 Explorer 0 Win Type - Total 1 Types 1/0/0/0/0/0/0/0/0/0 Lore% 49 Gallery% 66 Achievement% 52 Wizard Run 0 Options --------- Layout 2 ASCII 0 Keyboard 0 Movement Mouse Keybinds 0 Fullscreen 1 Font 24/Smallcaps Map View 50x44 Zoom Use 0% Tactical HUD 0 Map Filters NONE Filters NONE Steam 1 RUN: cfc7f68d-88e3-45cf-b864-f176a7ed731d